bitfinex/quotes_ETHUSD_20240821
["timestamp","ask_amount","ask_price","bid_price","bid_amount"]
[1724254724631,3.83011,2610.9,2610.3,3.83087]
[1724254724794,3.83011,2610.9,2610.6,0.11685547]
[1724254724996,24.9881,2611.2,2610.3,3.83087]
[1724254725272,3.83039,2610.7,2610.3,3.83087]
[1724254725534,7.66073,2610.8,2610.4,0.11692834]
[1724254725696,2.44,2610.5,2610.4,0.11692834]
[1724254725900,6.27068,2610.5,2609.9,3.83147]
[1724254726136,2.44,2610.5,2610.0,0.117373]
[1724254726301,3.83054,2610.6,2610.1,3.83126]
[1724254726690,3.83069,2610.5,2610.2,0.11717556]
[1724254726881,0.766123,2610.4,2609.9,3.83043934]
[1724254727087,30.71039,2610.7,2610.1,3.83126]
[1724254727399,30.71039,2610.7,2610.2,3.94833002]
[1724254729710,26.88,2610.7,2610.3,3.83096]
[1724254730050,26.88,2610.7,2610.2,0.11732002]
[1724254730198,30.71052,2610.7,2610.1,7.66234]
[1724254730404,1.83607233,2610.6,2610.3,0.11719143]
[1724254730606,1.83607233,2610.6,2610.2,3.94840014]
[1724254730911,1.83607233,2610.6,2610.3,0.11719143]
[1724254731127,3.83052,2610.7,2610.2,3.83111]
[1724254731330,3.83057,2610.6,2610.3,0.11718146]
[1724254731651,3.83032,2610.8,2610.2,3.83104]
[1724254731813,3.8304,2610.7,2610.2,3.83104]
[1724254732015,3.83055,2610.6,2610.1,3.83118]
[1724254732206,3.83055,2610.6,2610.3,0.11718146]
[1724254732403,2.2674,2610.5,2610.2,0.11728017]
[1724254732606,2.2674,2610.5,2610.1,3.83118]
[1724254732828,3.83084,2610.4,2610.3,0.11718146]
[1724254733158,3.83084,2610.4,2609.9,3.83148]
[1724254733505,6.09811,2610.5,2610.0,0.11747762]
[1724254733704,6.09811,2610.5,2610.0,3.94887762]
[1724254734110,0.766087,2610.6,2610.1,3.83116]
[1724254734302,3.83048,2610.7,2610.2,3.83103]
[1724254734520,3.83062,2610.6,2610.3,0.11718146]
[1724254734730,3.83078,2610.5,2610.0,3.83137]
[1724254734932,3.83083,2610.4,2609.9,7.6629]
[1724254735150,3.83078,2610.5,2610.0,3.94886762]
[1724254735306,3.83049,2610.7,2610.2,3.83103]
[1724254735504,3.83049,2610.7,2610.3,0.11718146]
[1724254735732,3.83049,2610.7,2610.2,3.83103]
[1724254735941,3.83049,2610.7,2610.4,0.11708276]
[1724254736110,5.137528,2610.7,2610.2,3.83103]
[1724254736309,5.137508,2610.7,2610.3,0.11718146]
[1724254736519,5.137508,2610.7,2610.2,3.83103]
[1724254736724,5.137508,2610.7,2610.1,4.38122]
[1724254736725,5.137508,2610.7,2610.3,3.94814146]
[1724254736966,2.4097,2610.8,2610.3,3.94814146]
[1724254737262,3.83039,2610.7,2610.3,0.11718146]
[1724254737477,3.83055,2610.6,2610.3,0.11718146]
[1724254737762,3.83068,2610.5,2610.4,0.11708276]
[1724254737968,4.213735,2610.5,2610.4,0.11708276]
[1724254738170,4.213735,2610.5,2609.9,3.83155]
[1724254738171,3.8309,2610.4,2609.9,3.83155]
[1724254738540,3.8309,2610.4,2610.0,0.11747762]
[1724254738923,3.83066,2610.6,2610.0,0.11747762]
[1724254739126,7.66096,2610.7,2610.2,3.83105]
[1724254739471,2.4097,2610.8,2610.3,0.11718146]
[1724254739766,2.4097,2610.8,2610.1,4.38119]
[1724254739933,2.4097,2610.8,2610.3,3.83091]
[1724254740311,3.0,2610.9,2610.5,3.83056]
[1724254740767,3.0,2610.9,2610.6,0.66688537]
[1724254741523,3.83039,2610.7,2610.6,0.11688537]
[1724254741752,3.83039,2610.7,2610.2,7.66205]
[1724254741960,3.83039,2610.7,2610.3,0.55]
[1724254742329,3.83039,2610.7,2610.3,0.66707188]
[1724254742693,3.0,2610.9,2610.3,4.49804188]
[1724254742834,4.13033,2610.8,2610.3,4.49804188]
[1724254743035,3.83041,2610.7,2610.3,4.49804188]
[1724254743824,3.83041,2610.7,2610.3,0.66707188]
[1724254744040,3.83041,2610.7,2610.3,4.49802188]
[1724254744570,3.83041,2610.7,2610.3,4.44802188]
[1724254744725,6.32603,2610.6,2610.3,0.11707188]
[1724254744931,6.32603,2610.6,2610.1,7.66236]
[1724254744932,6.32603,2610.6,2610.2,3.83112]
[1724254745130,6.32603,2610.6,2610.3,0.11709679]
[1724254745328,3.83135,2610.1,2609.6,0.4795964]
[1724254745523,2.4829,2610.1,2609.5,3.83213]
[1724254745878,23.38107,2610.3,2609.7,3.83177]
[1724254745879,23.38106,2610.3,2609.7,3.83177]
[1724254746030,23.38106,2610.3,2609.7,3.83174]
[1724254746225,23.38106,2610.3,2609.8,3.83161]
[1724254747038,3.83112,2610.2,2609.8,3.83161]
[1724254747230,23.38106,2610.3,2609.8,3.83161]
[1724254747631,27.21212,2610.3,2609.8,3.83161]
[1724254747965,23.38106,2610.3,2609.8,3.83161]
[1724254748128,23.38106,2610.3,2609.6,3.83196]
[1724254748129,3.8312,2610.2,2609.7,3.83177]
[1724254748329,3.8312,2610.2,2609.8,0.55]
[1724254748746,3.8312,2610.2,2609.4,3.8322]
[1724254748932,3.83155,2610.0,2609.4,7.66436]
[1724254749162,8.429335,2610.0,2609.5,0.11787175]
[1724254749339,3.83151,2610.0,2609.5,0.11787175]
[1724254749543,3.83164,2609.9,2609.5,0.11787175]
[1724254749863,3.83173,2609.8,2609.5,0.11787175]
[1724254750042,3.83199,2609.7,2609.5,0.11787175]
[1724254750244,1.007832,2609.7,2609.2,3.83247]
[1724254750472,11.1615,2610.0,2609.6,0.11777298]
[1724254750774,11.1615,2610.0,2609.5,3.83207]
[1724254751125,11.1615,2610.0,2609.6,0.11777298]
[1724254751524,11.1615,2610.0,2609.5,3.83207]
[1724254751740,11.1615,2610.0,2609.6,0.11777298]
[1724254751947,1.499281,2609.9,2609.5,3.83207]
[1724254752276,7.33,2610.0,2609.7,3.83175]
[1724254752477,7.33,2610.0,2609.7,7.66353]
[1724254752777,7.33,2610.0,2609.8,0.11757548]
[1724254752981,45.28932,2610.6,2610.0,3.8313]
[1724254753269,45.28932,2610.6,2609.9,3.83154]
[1724254753481,6.2288,2610.9,2610.1,3.94853927]
[1724254753626,3.82989,2611.1,2610.4,3.83075]
[1724254753826,3.82998,2611.0,2610.5,3.83068]
[1724254754154,3.82989,2611.1,2610.5,3.94809213]
[1724254755355,3.83003,2611.0,2610.5,3.94809213]
[1724254755562,3.83012,2610.9,2610.5,0.11752213]
[1724254755760,3.83047,2610.7,2610.2,2.3413]
[1724254756060,7.66096,2610.7,2610.6,0.11724407]
[1724254756372,7.66096,2610.7,2610.6,0.11712451]
[1724254756373,4.826896,2610.7,2610.6,0.11712451]
[1724254756702,4.826896,2610.7,2610.1,3.83119]
[1724254756914,6.13354,2610.8,2610.6,0.11712451]
[1724254757061,6.13354,2610.8,2610.2,4.38111]
[1724254757560,0.382989,2611.0,2610.4,3.83071]
[1724254757561,4.213029,2611.0,2610.4,3.83071]
[1724254757762,3.0,2610.9,2610.5,2.8158]
[1724254758029,6.82988,2611.1,2610.5,2.93306803]
[1724254758181,3.83011,2610.9,2610.5,0.66726803]
[1724254759013,3.82996,2611.0,2610.5,3.00836803]
[1724254759173,3.0,2610.9,2610.5,3.00836803]
[1724254759378,3.0,2610.9,2610.5,0.66726803]
[1724254760324,6.8301,2610.9,2610.5,0.66726803]
[1724254760915,10.66029,2610.9,2610.5,0.66726803]
[1724254761211,6.8301,2610.9,2610.5,0.66726803]
[1724254761380,3.0,2610.9,2610.5,0.66726803]
[1724254761594,7.66028,2610.9,2610.5,0.66726803]
[1724254762113,5.0027164,2610.9,2610.5,0.66726803]
[1724254762463,5.0027164,2610.9,2610.5,0.11726803]
[1724254762464,3.83027,2610.8,2610.5,0.11726803]
[1724254762663,7.3402164,2610.9,2610.5,0.11726803]
[1724254762664,3.83053,2610.6,2610.5,0.11726803]
[1724254762901,3.83053,2610.6,2609.8,6.30187]
[1724254762902,3.8308,2610.5,2610.0,3.83141]
[1724254763102,4.213583,2610.6,2610.0,3.83132]
[1724254763103,3.83053,2610.6,2610.0,3.83132]
[1724254763285,3.83053,2610.6,2610.0,7.66266]
[1724254763473,3.83068,2610.5,2610.0,3.83132]
[1724254764107,3.83034,2610.8,2610.2,3.83102]
[1724254764329,3.83034,2610.8,2610.3,0.55]
[1724254764523,7.33,2610.9,2610.3,3.3169643]
[1724254764729,7.33,2610.9,2610.5,3.83058]
[1724254764880,7.33,2610.9,2610.7,3.83032]
[1724254765084,26.88,2611.3,2610.9,2.2621]
[1724254765384,0.60066871,2611.7,2611.0,4.37984]
[1724254765583,3.82902,2611.7,2611.2,3.82957]
[1724254765828,3.82902,2611.7,2611.3,0.55]
[1724254765978,3.82902,2611.7,2611.3,0.66614494]
[1724254766812,4.42898442,2612.1,2611.4,2.2736]
[1724254766813,3.82857,2612.0,2611.4,2.2736]
[1724254767024,3.82857,2612.0,2611.5,0.55]
[1724254767223,3.82857,2612.0,2611.5,0.66569871]
[1724254767822,3.82865,2611.9,2611.5,0.66569871]
[1724254768019,4.69871929,2611.9,2611.5,0.66569871]
[1724254769026,3.82879,2611.8,2611.5,0.66569871]
[1724254769185,3.82879,2611.8,2611.5,0.11569871]
[1724254769386,3.82906,2611.7,2611.5,0.11569871]
[1724254769585,3.82906,2611.7,2611.1,6.10952]
[1724254769797,3.82906,2611.7,2611.6,0.11545573]
[1724254769980,3.82906,2611.7,2611.2,0.55]
[1724254769981,3.82907,2611.6,2611.2,0.55]
[1724254770184,3.82907,2611.6,2611.3,0.11575159]
[1724254770488,2.2588,2612.6,2611.9,3.82852]
[1724254770783,2.2588,2612.6,2611.8,3.82877]
[1724254770784,3.82775,2612.5,2611.8,3.82866]
[1724254770944,0.22588,2612.5,2612.0,0.11506135]
[1724254771151,4.05363,2612.5,2612.0,3.94342135]
[1724254771349,4.05363,2612.5,2612.0,0.11506135]
[1724254771567,3.82813,2612.3,2611.7,6.22387]
[1724254771738,4.05363,2612.5,2612.1,0.11496278]
[1724254771935,3.82813,2612.3,2611.6,3.82902]
[1724254772285,3.82813,2612.3,2611.4,4.37933]
[1724254772286,6.15925,2612.1,2611.4,4.37933]
[1724254772487,6.15925,2612.1,2611.4,8.20858]
[1724254772632,3.82835,2612.1,2611.5,3.82912]
[1724254772833,3.82835,2612.1,2611.4,4.37925]
[1724254773158,0.682835,2612.0,2611.4,0.55]
[1724254773365,0.6004935,2612.6,2611.5,2.3507]
[1724254773565,7.4281235,2612.6,2611.9,3.82852]
[1724254773884,7.4281235,2612.6,2611.6,0.55]
[1724254773885,3.82779,2612.5,2611.7,3.82881]
[1724254774208,7.4281235,2612.6,2611.9,3.82858]
[1724254774387,7.4281235,2612.6,2611.8,3.82871]
[1724254774388,1.13881235,2612.5,2611.8,3.82871]
[1724254774996,1.13881235,2612.5,2611.9,3.82853]
[1724254775163,1.13881235,2612.5,2612.0,3.82845]
[1724254775372,1.13881235,2612.5,2611.9,3.82853]
[1724254775675,1.13881235,2612.5,2611.9,7.65706]
[1724254775860,0.85669359,2612.4,2612.1,3.82832]
[1724254776065,3.0,2612.5,2612.1,3.82832]
[1724254776403,3.0,2612.6,2612.1,3.82832]
[1724254776567,3.0,2612.6,2612.1,3.82821]
[1724254777171,6.82763,2612.6,2612.1,3.82821]
[1724254777456,1.078763,2612.5,2612.1,3.82821]
[1724254779203,1.078763,2612.5,2612.2,0.11372928]
[1724254780005,1.078763,2612.5,2612.2,3.94189928]
[1724254780175,3.0,2612.6,2612.3,3.82804]
[1724254780512,9.7073,2613.2,2612.8,3.82717]
[1724254780693,2.3773,2613.2,2612.8,3.82717]
[1724254781003,4.42685719,2613.4,2612.9,3.82715]
[1724254781213,0.60032719,2613.4,2613.0,3.82698]
[1724254781353,29.2573,2613.5,2612.8,7.6544]
[1724254781560,3.82644,2613.4,2612.8,3.82717]
[1724254781759,7.65296,2613.4,2612.8,3.82717]
[1724254781998,3.82644,2613.4,2612.8,7.65439]
[1724254782203,3.82644,2613.4,2612.9,0.11267645]
[1724254782713,2.3773,2613.0,2612.9,0.11267645]
[1724254783008,2.3773,2613.0,2612.6,3.82751]
[1724254783206,2.3773,2613.0,2612.4,4.37776]
[1724254783377,0.620426,2612.9,2612.7,0.11276908]
[1724254783581,0.620426,2612.9,2612.5,7.6553]
[1724254783778,0.620426,2612.9,2612.8,0.11267056]
[1724254784104,0.620426,2612.9,2612.6,4.37759]
[1724254784309,3.0,2613.1,2612.8,0.11267056]
[1724254784510,3.0,2613.1,2612.7,3.94021908]
[1724254784714,3.0,2613.1,2612.9,0.11257205]
[1724254784896,3.0,2613.1,2612.8,0.11267056]
[1724254785082,21.8606,2613.3,2612.9,4.37713]
[1724254785083,19.55,2613.3,2612.9,4.37713]
[1724254785278,19.55,2613.3,2612.9,4.48970205]
[1724254785813,19.55,2613.3,2612.9,4.48965205]
[1724254786178,19.55,2613.3,2613.0,3.82698]
[1724254786697,19.55,2613.3,2613.1,0.11237504]
[1724254787210,19.55,2613.3,2613.2,0.11227655]
[1724254787583,19.55,2613.3,2612.9,4.37708]
[1724254787786,19.55,2613.3,2613.2,0.11165491]
[1724254787982,19.55,2613.3,2612.9,4.37708]
[1724254788384,19.55,2613.3,2613.0,0.11185191]
[1724254789416,19.55,2613.3,2612.9,4.37708]
[1724254790019,19.55,2613.3,2613.0,0.11185191]
[1724254790214,3.82643,2613.4,2613.0,0.11185191]
[1724254790618,3.82643,2613.4,2612.9,4.37708]
[1724254790619,10.33,2613.5,2612.9,4.37708]
[1724254790771,10.33,2613.5,2613.1,3.82674]
[1724254790973,10.33,2613.5,2613.2,0.55]
[1724254791467,10.33,2613.5,2613.3,0.11152163]
[1724254791825,10.33,2613.5,2612.9,3.82709]
[1724254791982,10.33,2613.5,2612.7,2.4453]
[1724254791983,6.1343,2613.4,2612.7,3.82734]
[1724254792185,3.82681,2613.2,2612.7,3.82734]
[1724254792400,4.440271,2613.2,2612.8,0.11196442]
[1724254792599,3.82716,2612.9,2612.8,0.11196442]
[1724254792810,3.82716,2612.9,2611.9,6.82858]
[1724254792811,2.3078,2612.9,2612.1,6.12724]
[1724254793014,2.3078,2612.9,2611.9,6.82853]
[1724254793015,3.82791,2612.4,2611.9,3.82853]
[1724254793209,7.65627,2612.3,2612.2,0.1126352]
[1724254793423,3.82822,2612.2,2611.3,2.3292]
[1724254793628,4.824637,2612.3,2612.0,0.11283235]
[1724254793795,0.996517,2612.3,2611.8,3.82869]
[1724254793994,23.37784,2612.5,2612.0,3.82848]
[1724254793995,19.55,2612.5,2612.0,3.82848]
[1724254794194,19.55,2612.5,2611.8,2.428]
[1724254794399,19.55,2612.5,2611.8,2.9618615]
[1724254794713,19.55,2612.5,2612.3,3.82796]
[1724254794922,19.55,2612.5,2612.4,3.82789]
[1724254795282,19.55,2612.5,2612.4,0.11243809]
[1724254795721,19.55,2612.5,2612.3,3.82796]
[1724254796083,19.55,2612.5,2612.4,0.11243809]
[1724254796782,21.53868433,2612.5,2612.4,0.11243809]
[1724254797182,19.55,2612.5,2612.2,3.82818]
[1724254797486,19.55,2612.5,2612.3,0.66253664]
[1724254798380,19.55,2612.5,2612.3,0.11253664]
[1724254798597,23.37782,2612.5,2612.0,3.82839]
[1724254798797,25.69032,2612.5,2612.1,0.66273377]
[1724254799218,3.82797,2612.4,2612.1,0.11273377]
[1724254799647,6.14026,2612.5,2611.9,3.8285]
[1724254799946,6.14026,2612.5,2612.2,0.11319705]
[1724254800151,6.14026,2612.5,2612.0,3.82841]
[1724254800318,1.729795,2612.5,2612.3,0.11315319]
[1724254800518,3.0,2612.6,2612.2,3.82807]
[1724254800728,3.0,2612.6,2612.4,0.11305464]
[1724254801030,3.0,2612.6,2612.5,0.11296604]
[1724254801422,3.0,2612.6,2612.3,4.37795]
[1724254801827,3.0,2612.6,2612.4,0.11306459]
[1724254802015,5.042721,2612.6,2612.4,0.11306459]
[1724254803305,3.0,2612.6,2612.4,0.11306459]
[1724254803500,6.82761,2612.6,2612.4,0.11306459]
[1724254803731,3.82775,2612.5,2612.0,3.82843]
[1724254804007,3.82775,2612.5,2612.1,0.66329064]
[1724254804730,3.82775,2612.5,2612.1,4.49161064]
[1724254805137,5.626273,2612.5,2612.1,4.49161064]
[1724254805655,5.626273,2612.5,2612.1,0.66329064]
[1724254805859,3.82792,2612.4,2612.1,0.66329064]
[1724254806361,3.0,2612.6,2612.1,0.66329064]
[1724254806536,19.55,2612.9,2612.1,0.66329064]
[1724254806537,19.55,2612.9,2612.3,3.82798]
[1724254806745,3.82723,2612.9,2612.4,0.55]
[1724254807109,3.82723,2612.9,2612.5,0.11294615]
[1724254807314,3.82705,2613.0,2612.5,0.11294615]
[1724254807754,3.82725,2612.9,2612.4,0.55]
[1724254807922,7.33,2613.1,2611.5,4.2128]
[1724254807923,6.28765,2612.7,2612.6,0.11284761]
[1724254808159,0.96917,2613.0,2612.2,2.2823]
[1724254808456,3.0,2613.0,2612.5,3.82765]
[1724254808654,3.0,2613.0,2612.7,3.82743]
[1724254808981,7.33,2613.1,2612.7,7.65471]
[1724254809169,7.33,2613.1,2612.8,0.11253121]
[1724254809486,11.15688,2613.1,2612.5,7.65535]
[1724254809641,7.33,2613.1,2612.6,4.37752]
[1724254809981,3.0,2613.3,2612.6,8.31772329]
[1724254809982,6.8267,2613.3,2612.6,8.31772329]
[1724254810184,6.8267,2613.3,2612.7,3.82742]
[1724254810340,6.8267,2613.3,2612.8,0.66241684]
[1724254810534,3.82694,2613.1,2612.8,0.55]
[1724254810757,3.82733,2612.8,2612.2,3.82806]
[1724254810935,3.82733,2612.8,2612.3,0.55]
[1724254811336,6.28867,2612.9,2612.4,0.11274634]
[1724254811669,6.28867,2612.9,2612.3,0.55]
[1724254811670,3.82732,2612.8,2612.3,0.55]
[1724254811988,6.28864,2612.9,2612.3,4.37803]
[1724254812190,7.3767364,2612.9,2612.4,0.11275629]
[1724254812480,7.3767364,2612.9,2612.4,3.94061629]
[1724254812846,1.0880964,2612.9,2612.4,7.76841629]
[1724254813184,0.765374,2613.0,2612.5,3.82762]
[1724254813351,3.82695,2613.1,2612.6,3.82759]
[1724254813556,3.82695,2613.1,2612.7,0.11254023]
[1724254813888,3.0,2613.3,2612.9,3.82703]
[1724254814082,5.2651,2613.4,2612.9,3.82703]
[1724254814379,4.735828,2613.3,2612.6,3.82751]
[1724254814581,3.82695,2613.1,2612.7,0.55]
[1724254814769,3.82695,2613.1,2612.6,3.82759]
[1724254815085,7.65391,2613.1,2612.6,3.82759]
[1724254815245,4.592481,2613.0,2612.7,0.11255515]
[1724254815588,4.592481,2613.0,2612.4,3.82776]
[1724254815893,4.592481,2613.0,2612.8,0.11242182]
[1724254816064,4.592481,2613.0,2612.5,0.55]
[1724254816065,4.592481,2613.0,2612.5,4.37767]
[1724254816611,4.592481,2613.0,2612.6,0.11261887]
[1724254816750,0.4592481,2612.9,2612.6,0.11261887]
[1724254817380,2.8171481,2612.9,2612.6,0.11261887]
[1724254817855,0.4592481,2612.9,2612.6,3.94019887]
[1724254818068,6.21208,2613.1,2612.6,3.94019887]
[1724254818069,3.0,2613.0,2612.6,3.94019887]
[1724254818981,3.0,2613.0,2612.6,7.76771887]
[1724254819181,4.735828,2613.3,2612.8,3.82719]
[1724254819182,0.909148,2613.3,2612.8,3.82719]
[1724254819391,2.4335,2613.4,2613.0,3.82693]
[1724254819553,2.4335,2613.4,2612.5,6.25699]
[1724254819554,4.848646,2613.3,2612.7,3.82731]
[1724254819756,4.848646,2613.3,2612.8,4.37729]
[1724254819994,24.398646,2613.3,2612.8,4.37729]
[1724254820297,24.398646,2613.3,2612.9,0.1123233]
[1724254820472,1.58014933,2613.2,2612.9,0.1123233]
[1724254821525,0.600261,2613.6,2613.4,3.82642]
[1724254821674,2.281,2614.0,2613.4,3.82642]
[1724254822003,0.9611,2613.9,2613.5,0.11154343]
[1724254822211,3.82604,2613.7,2613.5,0.11154343]
[1724254822359,3.82604,2613.7,2613.0,3.82698]
[1724254822560,3.82604,2613.7,2613.1,0.66192741]
[1724254822915,4.78681,2613.9,2613.1,0.11192741]
[1724254822916,6.09109,2613.5,2613.1,0.11192741]
[1724254823138,3.82668,2613.3,2613.1,0.11192741]
[1724254823347,3.827,2613.1,2612.3,3.82791]
[1724254824053,2.2734,2612.8,2612.1,3.82831]
[1724254824196,0.610056,2612.7,2612.4,0.11261707]
[1724254824396,3.82787,2612.5,2611.6,2.4414]
[1724254824597,3.96,2612.3,2611.4,3.82936]
[1724254824928,3.82838,2612.1,2611.7,0.1133071]
[1724254825091,3.82838,2612.1,2611.4,3.82936]
[1724254825092,4.47676533,2612.1,2611.4,3.82936]
[1724254825294,3.0,2612.0,2611.3,3.82948]
[1724254825533,3.0,2612.0,2611.5,3.94259432]
[1724254825797,3.64838533,2612.1,2611.6,0.1134057]
[1724254826306,3.64838533,2612.1,2611.6,3.9424557]
[1724254826508,3.0,2612.1,2611.7,3.82891]
[1724254826837,2.2734,2612.2,2611.8,0.55]
[1724254827046,2.2734,2612.2,2611.8,0.6632085]
[1724254827994,2.2734,2612.2,2611.8,0.1132085]
[1724254827995,3.82843,2612.1,2611.8,0.1132085]
[1724254828195,3.82843,2612.1,2611.3,3.82937]
[1724254828394,0.610183,2612.0,2611.4,0.11360294]
[1724254828913,0.610183,2612.0,2611.5,3.82918]
[1724254829111,2.2734,2612.2,2611.5,3.82918]
[1724254829112,3.0,2612.1,2611.5,3.82918]
[1724254829310,3.0,2612.2,2611.5,3.82911]
[1724254829519,3.0,2612.4,2611.7,3.8288]
[1724254829732,3.0,2612.4,2611.8,3.8287]
[1724254829893,3.0,2612.4,2611.9,0.55]
[1724254830093,3.610056,2612.7,2612.1,3.82823]
[1724254830444,3.610056,2612.7,2612.2,0.55]
[1724254830716,3.610056,2612.7,2612.2,4.49099418]
[1724254830875,3.610056,2612.7,2612.3,2.3542]
[1724254831026,3.82716,2612.9,2612.3,2.3542]
[1724254831371,3.82705,2613.0,2612.4,0.55]
[1724254832030,3.82721,2612.9,2612.5,0.15184054]
[1724254832775,3.0,2613.1,2612.6,3.8276]
[1724254833070,3.0,2613.0,2612.7,0.15222726]
[1724254833575,3.0,2613.1,2612.7,0.15222726]
[1724254833779,2.3602,2613.2,2612.8,0.55]
[1724254833941,2.3392,2613.6,2612.8,0.55]
[1724254834148,3.96,2613.9,2613.0,3.82692]
[1724254834149,10.12497,2613.9,2613.0,3.82692]
[1724254834482,6.16497,2613.9,2613.2,3.82672]
[1724254834779,3.82585,2613.8,2613.1,1.19638997]
[1724254834980,7.65183,2613.8,2613.3,0.15132388]
[1724254835160,3.826,2613.7,2613.2,0.15142387]
[1724254835348,6.2992,2613.9,2613.4,0.1512239]
[1724254835529,7.45587,2613.8,2613.3,0.15132388]
[1724254835729,3.82614,2613.6,2613.3,0.15132388]
[1724254836059,3.82643,2613.4,2612.6,2.2899]
[1724254836374,3.82659,2613.3,2612.7,4.37736]
[1724254836683,3.8264,2613.5,2612.7,8.20471]
[1724254836881,3.82643,2613.4,2612.8,1.049461]
[1724254837090,3.82643,2613.4,2612.9,0.55]
[1724254838688,6.30543,2613.4,2612.9,0.55]
[1724254838860,6.30543,2613.4,2612.8,0.55]
[1724254839060,3.96,2613.3,2612.8,0.55]
[1724254839240,1.026543,2613.2,2612.4,3.82788]
[1724254839446,3.82687,2613.1,2612.4,3.82788]
[1724254839791,4.026543,2613.2,2612.1,3.82827]
[1724254839792,6.13409,2612.8,2612.1,3.82827]
[1724254839992,6.13409,2612.8,2612.5,0.152124]
[1724254839993,2.3067,2612.8,2612.5,0.152124]
[1724254840196,5.3067,2612.8,2612.2,3.82815]
[1724254840399,6.25238233,2612.8,2612.2,3.82815]
[1724254840596,3.0,2612.8,2612.4,3.82782]
[1724254840746,3.0,2612.9,2612.3,3.98027411]
[1724254841102,3.0,2612.9,2612.4,3.98025819]
[1724254841245,3.0,2612.9,2612.4,0.15237819]
[1724254841646,3.0,2612.9,2612.4,3.98015819]
[1724254842298,8.40286233,2612.9,2612.4,0.15237819]
[1724254842579,8.40286233,2612.9,2612.3,3.82795]
[1724254842893,8.40286233,2612.9,2612.4,3.07287819]
[1724254843094,4.57560233,2612.9,2612.4,6.90075819]
[1724254843591,3.0,2612.9,2612.4,3.07287819]
[1724254843750,3.0,2612.9,2612.5,7.65539]
[1724254843950,3.0,2612.9,2612.5,3.82767]
[1724254844152,7.33,2613.0,2612.7,3.82733]
[1724254844453,19.55,2613.1,2612.8,0.15197804]
[1724254844656,19.55,2613.1,2612.9,3.82715]
[1724254844968,19.55,2613.1,2613.0,0.55]
[1724254845182,19.55,2613.1,2613.0,0.70177801]
[1724254846896,19.55,2613.1,2613.0,0.15177801]
[1724254847053,23.37687,2613.1,2613.0,0.15177801]
[1724254847258,23.37687,2613.1,2612.5,7.65532]
[1724254847500,23.37687,2613.1,2612.6,4.52953435]
[1724254848001,19.55,2613.1,2612.6,0.70194435]
[1724254848209,23.37696,2613.1,2612.6,0.70194435]
[1724254848799,23.37696,2613.1,2612.6,0.55]
[1724254849103,23.37696,2613.1,2612.7,0.15184432]
[1724254849284,19.55,2613.1,2612.7,3.97929432]
[1724254849521,19.55,2613.1,2612.7,0.15184432]
[1724254849806,3.82681,2613.2,2612.7,0.15184432]
[1724254850169,19.55,2613.3,2612.8,3.82729]
[1724254850368,19.55,2613.3,2612.9,0.55]
[1724254850916,19.55,2613.3,2613.0,3.82701]
[1724254851059,10.33,2613.4,2613.1,6.20665]
[1724254851060,3.0,2613.4,2613.1,6.20665]
[1724254851264,3.82601,2613.7,2613.2,4.997365]
[1724254851476,3.82614,2613.6,2613.2,0.55]
[1724254851807,3.82614,2613.6,2613.3,0.15124427]
[1724254851808,6.82614,2613.6,2613.3,0.15124427]
[1724254851963,3.82628,2613.5,2613.2,0.55]
[1724254852161,3.82628,2613.5,2613.1,0.55]
[1724254852402,3.0,2613.4,2613.3,0.15124427]
[1724254852614,3.0,2613.4,2613.2,0.1511603]
[1724254852909,3.0,2613.5,2613.2,0.1511603]
[1724254853203,6.82629,2613.5,2613.2,0.1511603]
[1724254853613,7.89152,2613.5,2613.2,0.1511603]
[1724254853811,3.82657,2613.3,2613.2,0.1511603]
[1724254854199,3.82657,2613.3,2612.7,3.82742]
[1724254854398,3.82657,2613.3,2612.8,0.55]
[1724254854692,3.82675,2613.2,2612.8,0.70158519]
[1724254856231,3.82652,2613.4,2612.9,0.15148517]
[1724254856430,9.18999533,2613.4,2612.9,0.15148517]
[1724254856602,9.18995533,2613.4,2612.9,0.15148517]
[1724254856928,9.18995533,2613.4,2612.8,4.37731]
[1724254856929,9.19000533,2613.4,2612.8,4.37731]
[1724254857083,5.36343533,2613.4,2612.8,4.37731]
[1724254857288,3.82659,2613.3,2612.9,0.15148517]
[1724254858880,6.22879,2613.1,2612.9,0.15148517]
[1724254859085,7.65402,2613.0,2612.9,0.15148517]
[1724254859285,3.82735,2612.8,2612.3,3.82795]
[1724254859511,3.82717,2612.9,2612.4,0.15188095]
[1724254859828,13.55875,2613.1,2612.4,0.15188095]
[1724254860334,13.55875,2613.1,2612.5,3.82766]
[1724254860858,13.55875,2613.1,2612.6,0.15183498]
[1724254861261,17.38575,2613.1,2612.6,0.15183498]
[1724254861564,3.82703,2613.0,2612.6,0.15183498]
[1724254861976,13.55875,2613.1,2612.6,0.15183498]
[1724254862263,11.15695,2613.1,2612.5,3.82762]
[1724254862467,7.33,2613.1,2612.7,3.82743]
[1724254862967,7.33,2613.1,2612.8,0.1516747]
[1724254863319,11.15688,2613.1,2612.5,10.14819]
[1724254863551,11.15688,2613.1,2612.9,0.15157468]
[1724254863757,3.82688,2613.1,2612.6,4.37755]
[1724254864268,3.82688,2613.1,2612.7,0.15175483]
[1724254864435,23.37673,2613.2,2612.7,0.15175483]
[1724254864840,23.37673,2613.2,2612.7,3.97919483]
[1724254865238,19.55,2613.2,2612.7,3.97919483]
[1724254865444,19.55,2613.2,2612.7,3.82744]
[1724254866042,3.82688,2613.1,2612.6,4.37758]
[1724254866378,23.37672,2613.2,2612.7,3.97916981]